Cogmind - Beta 16.1 @@@ ROGUE MODE // 2026.04.11 @ 20:32:28 Player: YA-B01 Result: Core destroyed Performance ------------- Evolutions (6) 3000 Regions Visited (13) 2600 Robots Destroyed (63) 315 Value Destroyed (1488) 1488 Prototype IDs (36) 720 Alien Tech Used (0) 0 Bonus (9506) 9506 TOTAL SCORE: 17629 Bonus ------- Triggered High Security 500 High Alert Combat Kills 225 Follower Combat Kills 7096 Registered with UFD 300 Met Data Miner 300 Built Enhanced Grunts 300 A7 Reached Mainframe 300 Met R17 at Cetus 500 Friendly Fire -15 Cogmind --------- Core Integrity 0/1150 Matter 300/300 Energy 100/100 System Corruption 7% Temperature Cool (0) Movement Core (50) Location -4/Armory Parts ------- > --- POWER (1) -------- (None) > --- PROPULSION (5) --- (None) > --- UTILITY (7) ------ (None) > --- WEAPON (6) ------- (None) > --- INVENTORY (5) ---- Advanced System Shield Grenade Launcher Neutron Missile Launcher Enhanced Force Lance Peak State ------------ > --- POWER ------------ Enhanced Fission Core > --- PROPULSION ------- Wheel Wheel Compact Wheel Armored Wheel Armored Wheel > --- UTILITY ---------- Large Storage Unit Large Matter Pod Cloaking Device Improved Medium Armor Plating Improved Medium Armor Plating Layered Light Armor Plating Advanced System Shield > --- WEAPON ----------- 1B-0RG's Assimilator Phasing Sabre > --- INVENTORY -------- Neutrino Core Improved Medium Treads Improved Medium Treads Armored Medium Treads Compact Wheel Large Matter Pod Large Matter Pod Improved Transmission Jammer ECM Suite Improved Propulsion Shielding Medium Insulated Plating Advanced System Shield Grenade Launcher [Rating: 114] Favorites ----------- Power Neutrino Core Engine Light Angular Momentum Engine Power Core Neutrino Core Reactor Light Antimatter Reactor Propulsion Wheel Treads Medium Treads Leg Improved Carbon-fiber Leg Wheel Wheel Utility Large Storage Unit Device Advanced Terrain Scanner Storage Large Storage Unit Processor 0b10 Decoder Chip [Generic] Hackware Advanced System Shield Protection Medium Reactive Plating Weapon 1B-0RG's Assimilator Energy Gun Subdweller Laser Energy Cannon Subdweller Beam Cannon Ballistic Gun Assault Rifle Ballistic Cannon Heavy Flak Cannon Launcher Grenade Launcher Slashing Weapon Chainsword Piercing Weapon Plasma Lance Special Melee Weapon 1B-0RG's Assimilator Build | -11 -10 -10 -9 -6 -6 -6 -6 -5 -5 -5 -5 -4 -4 ------- Run | Yrd Mat Sub Scr Fac Low Low Dat Pro Fac Ext Cet Fac Arm Slots Evolved 12 | . . . . 8 . . . . 2 . . 2 . Power . | . . . . . . . . . . . . . . Propulsion 3 | . . . . 1 . . . . 1 . . 1 . Utility 5 | . . . . 3 . . . . 1 . . 1 . Weapon 4 | . . . . 4 . . . . . . . . . Parts Attached 96 | 7 2 9 4 16 1 9 . 3 20 4 1 9 11 Power 9 | 1 . 1 . 2 . . . 2 2 . . 1 . Engine 3 | 1 . 1 . 1 . . . . . . . . . Core 5 | . . . . 1 . . . 1 2 . . 1 . Reactor 1 | . . . . . . . . 1 . . . . . Propulsion 35 | 2 2 3 3 7 . 3 . . 6 . . 4 5 Treads 7 | 2 . 1 . . . 1 . . . . . 1 2 Leg 6 | . . . 2 3 . . . . . . . . 1 Wheel 22 | . 2 2 1 4 . 2 . . 6 . . 3 2 Hover . | . . . . . . . . . . . . . . Flight . | . . . . . . . . . . . . . . Utility 38 | 2 . 2 1 5 1 6 . 1 10 3 1 4 2 Device 6 | 1 . . . . . 1 . . 1 . . 1 2 Storage 7 | 1 . . 1 1 . 2 . . 2 . . . . Processor 1 | . . . . 1 . . . . . . . . . Hackware 2 | . . . . . . . . . 1 1 . . . Protection 22 | . . 2 . 3 1 3 . 1 6 2 1 3 . Artifact . | . . . . . . . . . . . . . . Weapon 14 | 2 . 3 . 2 . . . . 2 1 . . 4 Energy Gun 2 | . . 2 . . . . . . . . . . . Energy Cannon 1 | . . 1 . . . . . . . . . . . Ballistic Gun 2 | 2 . . . . . . . . . . . . . Ballistic Cannon 1 | . . . . . . . . . . . . . 1 Launcher 3 | . . . . . . . . . 1 . . . 2 Special Weapon . | . . . . . . . . . . . . . . Impact Weapon . | . . . . . . . . . . . . . . Slashing Weapon 3 | . . . . 1 . . . . 1 1 . . . Piercing Weapon 1 | . . . . . . . . . . . . . 1 Special Melee Weapon 1 | . . . . 1 . . . . . . . . . Unidentified Prototypes 6 | . . . . 1 . . . . 1 . . 1 3 Parts Lost 45 | . . 2 . 5 1 4 . 2 7 1 2 12 9 Power 4 | . . . . 1 . 1 . . 1 . . 1 . Propulsion 18 | . . 1 . 1 1 2 . 1 1 1 1 3 6 Utility 20 | . . 1 . 3 . 1 . 1 5 . 1 6 2 Weapon 3 | . . . . . . . . . . . . 2 1 Highest Loss Streak 7 | . . 2 . 3 1 2 . 2 2 1 2 7 6 To Critical Strikes . | . . . . . . . . . . . . . . Average Backups 11 | 3 6 6 4 10 14 13 13 14 14 14 13 12 6 Power . | . 1 . . . . . . 1 . . . . . Propulsion 3 | 1 2 2 . 4 5 2 1 1 4 3 4 3 1 Utility 6 | . 1 2 1 2 5 8 9 8 9 9 8 7 3 Weapon 1 | . . 1 . 2 3 3 3 3 1 1 1 1 1 Tool/Special . | . . . . . . . . . . . . . . Unused Backups 15 | . 1 2 . . 4 1 . . 3 . . . 4 Power 2 | . . 1 . . 1 . . . . . . . . Propulsion 3 | . . . . . . 1 . . 2 . . . . Utility 8 | . . 1 . . 3 . . . 1 . . . 3 Weapon 2 | . 1 . . . . . . . . . . . 1 Tool/Special . | . . . . . . . . . . . . . . Average Slot Usage (%) 73 | . 100 99 99 60 63 64 66 70 72 70 70 74 26 Engine 4 | . 14 14 14 2 6 4 . . . . . . . Core 2 | . . . . 2 . . . 4 3 5 5 3 . Treads 2 | . 14 24 . . . . 6 6 1 . . . 4 Leg 2 | . . . 14 7 . . . . . . . . 1 Wheel 15 | . 13 3 13 11 13 13 13 11 20 23 17 25 5 Storage 12 | . 14 14 14 9 13 13 13 13 11 11 11 10 5 Hackware 1 | . . . . . . . . . 2 5 5 5 2 Protection 14 | . . 13 14 6 16 19 20 20 14 11 16 13 . Energy Gun 4 | . . 10 28 . . . . . . . . . . Ballistic Gun 1 | . 28 15 . . . . . . . . . . . Slashing Weapon 4 | . . . . 6 6 6 6 6 4 4 5 5 . Special Melee Weapon 4 | . . . . 5 6 6 6 6 5 5 5 5 . Peak Build Rating 114 | 7 8 20 22 97 92 92 90 97 108 111 111 114 46 Average Rating 78 | 5 7 10 21 88 90 90 90 95 104 109 106 110 21 On Entrance 61 | . 7 8 20 22 90 92 90 90 97 108 111 106 25 Avg Prop Armor Cover (%) 5 | . 11 9 4 7 . 6 6 5 4 . . . 15 Naked Turns 104 | . . . . . . . . . . . . . 104 Heaviest Build 132 | 15 15 29 40 130 132 132 95 107 117 118 118 115 36 Greatest Support 87 | 40 40 40 40 58 36 26 20 20 44 46 46 66 87 Greatest Overweight (x) 13 | . 1 2 1 3 5 13 4 10 10 2 3 2 1 Average Overweight (x) 2 | . . . . 2 4 5 4 5 2 2 2 1 . Largest Inventory Capacity 15 | 8 8 8 15 15 15 15 15 15 15 15 15 15 15 Average Capacity 13 | 7 8 8 11 15 15 15 15 15 15 15 15 15 10 Most Carried 15 | 5 8 8 10 15 15 15 13 15 15 15 15 14 10 Average Carried 12 | 3 6 6 8 10 14 13 13 14 14 14 13 12 6 Final Capacity 15 | 8 8 8 15 15 15 15 15 15 15 15 15 15 5 Final Carried 15 | 5 8 8 10 14 15 13 13 15 15 15 13 10 4 Class Distribution -------------------- 51% | Mutant 45% | Scavenger-Mutant 3% | Commander-Mutant Dominant Class ---------------- Mutant | -10/Materials Mutant | -10/Subcaves Mutant | -9/Scraptown Mutant | -6/Factory Mutant | -6/Lower Caves Mutant | -6/Lower Caves Scavenger-Mutant | -6/Data Miner Scavenger-Mutant | -5/Proximity Caves Scavenger-Mutant | -5/Factory Scavenger-Mutant | -5/Extension Scavenger-Mutant | -5/Cetus Scavenger-Mutant | -4/Factory Mutant | -4/Armory Resources | -11 -10 -10 -9 -6 -6 -6 -6 -5 -5 -5 -5 -4 -4 ----------- Run | Yrd Mat Sub Scr Fac Low Low Dat Pro Fac Ext Cet Fac Arm Matter Collected 10475 | 321 38 358 . 1260 1046 1167 . 741 2613 1261 698 790 182 Remotely . | . . . . . . . . . . . . . . Salvage Created 2787 | 140 . 272 . 397 64 112 . . 617 449 20 574 142 Parts 138 | 8 . 16 . 21 . 3 . . 36 24 2 24 4 Haulers Intercepted 7 | . . . . 1 . 1 . . 1 1 . 3 . Recyclers Shooed 4 | 1 1 . . 1 . . . . . . . 1 . Parts Field Recycled . | . . . . . . . . . . . . . . Retrieved Matter . | . . . . . . . . . . . . . . Parts Self-Destructed 62 | . . 5 . . 13 16 . 28 . . . . . Prevented 34 | . . . . . 11 14 . 9 . . . . . Parts Restored . | . . . . . . . . . . . . . . Kills | -11 -10 -10 -9 -6 -6 -6 -6 -5 -5 -5 -5 -4 -4 ------- Run | Yrd Mat Sub Scr Fac Low Low Dat Pro Fac Ext Cet Fac Arm Combat Hostiles Destroyed 22 | . . 6 . 1 1 . . . 5 3 . 4 2 Melee 10 | . . . . 1 1 . . . 2 3 . 1 2 Guns 2 | . . 2 . . . . . . . . . . . Cannons 4 | . . 4 . . . . . . . . . . . AOE 6 | . . . . . . . . . 3 . . 3 . Classes Destroyed 13 | 2 . 2 . 4 . . . . 2 1 1 . 1 Worker 16 | . . . . 5 . . . . 9 1 . 1 . Builder 7 | . . . . 1 . . . . 1 2 . 3 . Tunneler 3 | 3 . . . . . . . . . . . . . Hauler 7 | . . . . 1 . 1 . . 1 1 . 3 . Recycler 5 | 1 . . . 1 . . . . 1 1 . 1 . Mechanic 1 | . . . . . . . . . 1 . . . . Watcher 1 | . . . . . . . . . . . 1 . . Swarmer 6 | . . . . 1 . . . . 1 . . 4 . Grunt 7 | . . 2 . . 1 . . . 4 . . . . Specialist 2 | . . . . . . . . . . . . . 2 Hunter 3 | . . . . . . . . . . 3 . . . Programmer 1 | . . . . . . . . . 1 . . . . Subdweller 4 | . . 4 . . . . . . . . . . . Best Kill Streak 5 | 4 . 2 . 4 1 1 . . 3 2 1 5 1 Combat Bots Only 4 | . . 2 . 1 1 . . . 3 2 . 4 1 Max Kills in Single Turn 3 | 1 . 1 . 1 1 1 . . 2 1 1 3 1 Gunslinging . | . . . . . . . . . . . . . . Exploded 3 | . . . . . . . . . 2 . . 3 . Melee 1 | . . . . 1 1 . . . 1 1 . 1 1 Uniques/NPCs Destroyed . | . . . . . . . . . . . . . . Combat | -11 -10 -10 -9 -6 -6 -6 -6 -5 -5 -5 -5 -4 -4 -------- Run | Yrd Mat Sub Scr Fac Low Low Dat Pro Fac Ext Cet Fac Arm Hostile Shots Fired 815 | . 5 52 . 78 12 49 . 28 106 50 38 77 320 Missed 261 | . . 20 . 26 4 11 . 6 28 14 5 18 129 Hits 554 | . 5 32 . 52 8 38 . 22 78 36 33 59 191 Melee 4 | . . . . . . 1 . . . . . . 3 Projectile 550 | . 5 32 . 52 8 37 . 22 78 36 33 59 188 AOE 1 | . . . . . . . . . 1 . . . . Critical Strikes 17 | . . . . . 1 . . 1 4 2 1 3 5 Part Disruptions 8 | . . . . 1 . . . . . . . . 7 Damage Taken 10180 | . 55 713 . 958 161 771 . 392 1831 697 830 1562 2210 Core 2074 | . 12 95 . 130 20 74 . 26 415 70 59 205 968 Absorbed by Shields 239 | . . . . . . . . . . 39 138 . 62 Redirected to Shielding 227 | . . . . . . 20 . 87 20 . . 100 . Ignored by Resistances 357 | . . . . 5 27 177 . 45 . 94 9 . . Regen/Repaired (Parts) 1368 | . . . . 242 33 258 . 54 370 90 232 89 . Core Remaining (%) 68 | 100 . . 57 . . . . 70 . . 45 . . Volleys Fired 61 | 11 2 32 . . . . . . 10 5 . 1 . Largest 2 | 2 2 2 . . . . . . 1 1 . 1 . Hottest 140 | 40 40 140 . . . . . . 30 30 . 30 . Shots Fired 101 | 22 4 59 . . . . . . 10 5 . 1 . Gun 75 | 22 4 49 . . . . . . . . . . . Cannon 10 | . . 10 . . . . . . . . . . . Launcher 16 | . . . . . . . . . 10 5 . 1 . Special . | . . . . . . . . . . . . . . Kinetic 52 | 22 4 26 . . . . . . . . . . . Thermal 33 | . . 33 . . . . . . . . . . . Explosive 16 | . . . . . . . . . 10 5 . 1 . Electromagnetic . | . . . . . . . . . . . . . . Robot Hit Streak 22 | 4 3 19 . . . . . . 22 . . . . Robot Miss Streak 2 | 2 1 2 . . . . . . . . . . . Penetration Max . | . . . . . . . . . . . . . . Secondary Targets . | . . . . . . . . . . . . . . Shots Hit Robots 163 | 11 3 42 . 13 2 5 . 3 27 18 1 20 18 Core Hits 104 | 5 2 13 . 5 1 1 . . 40 19 1 12 5 Critical Kills . | . . . . . . . . . . . . . . Critical Parts Destroyed . | . . . . . . . . . . . . . . Critical Strikes 11 | . . . . . . 2 . 1 . 4 . 2 2 Sever 9 | . . . . . . 2 . 1 . 4 . 2 . Impale 2 | . . . . . . . . . . . . . 2 Melee Attacks 168 | . . . . 25 2 6 1 7 41 25 2 28 31 Impact . | . . . . . . . . . . . . . . Slashing 137 | . . . . 25 2 6 1 7 41 25 2 28 . Piercing 31 | . . . . . . . . . . . . . 31 Sneak Attacks 49 | . . . . 10 . 2 . . 17 8 . 12 . Combat Hostiles . | . . . . . . . . . . . . . . Follow-up Attacks . | . . . . . . . . . . . . . . Damage Inflicted 8884 | 150 49 757 . 828 71 241 . 105 2722 1489 47 1667 758 Guns 692 | 132 47 513 . . . . . . . . . . . Cannons 244 | . . 244 . . . . . . . . . . . Explosions 1856 | . . . . . . . . . 1178 403 . 275 . Melee 6012 | . . . . 828 71 241 . 105 1544 1086 47 1386 704 Ramming 80 | 18 2 . . . . . . . . . . 6 54 Kinetic 416 | 132 47 237 . . . . . . . . . . . Thermal 783 | . . 520 . . . . . . 263 . . . . Explosive 1593 | . . . . . . . . . 915 403 . 275 . Electromagnetic . | . . . . . . . . . . . . . . Impact . | . . . . . . . . . . . . . . Slashing 5308 | . . . . 828 71 241 . 105 1544 1086 47 1386 . Piercing 704 | . . . . . . . . . . . . . 704 Highest Corruption 7 | . . . . 3 3 5 . . 2 2 2 1 7 Average Corruption 2 | . . . . 2 3 4 . . 1 2 2 1 1 Corruption Purged 5 | . . . . . . 5 . . . . . . . Corruption Blocked . | . . . . . . . . . . . . . . Effects 100 | . . . . 1 19 38 . . 16 17 5 2 2 Message Errors 28 | . . . . . 5 13 . . 4 4 1 . 1 Matter Fused 21 | . . . . . 4 10 . . 3 4 . . . Heat Flow Errors 14 | . . . . 1 2 3 . . 4 3 1 . . Energy Discharges 14 | . . . . . 4 6 . . 2 . 2 . . Parts Rejected 3 | . . . . . 2 . . . . 1 . . . Parts Fused 1 | . . . . . 1 . . . . . . . . Data Loss (minor) 14 | . . . . . 1 5 . . 2 4 1 . 1 Data Loss (major) 3 | . . . . . . 1 . . . 1 . 1 . Alerts 2 | . . . . . . . . . 1 . . 1 . Overload Shots . | . . . . . . . . . . . . . . Overflow Damage 1096 | . . . . 164 13 . . . 389 123 . 402 5 Projectiles . | . . . . . . . . . . . . . . Explosions 49 | . . . . . . . . . 49 . . . . Melee 1047 | . . . . 164 13 . . . 340 123 . 402 5 Knockbacks . | . . . . . . . . . . . . . . Impact . | . . . . . . . . . . . . . . Kinetic . | . . . . . . . . . . . . . . Secondary . | . . . . . . . . . . . . . . Self-Inflicted Damage 72 | . . . . . . . . . . . . 28 44 Shots 1 | . . . . . . . . . . . . 1 . Rammed 11 | 4 1 . . . . . . . . . . 3 3 Targets Rammed 11 | 4 1 . . . . . . . . . . 3 3 Kicked . | . . . . . . . . . . . . . . Crushed . | . . . . . . . . . . . . . . Highest Temperature 273 | . . 128 . 116 249 273 . 27 267 228 262 5 . Average Temperature 86 | . . 46 . 66 108 105 . 21 90 101 135 5 . Received Heat Transfer 1745 | . 30 186 . 102 30 105 . 225 339 172 124 226 206 Siege Activations . | . . . . . . . . . . . . . . Martial Activations . | . . . . . . . . . . . . . . Shielding Activations . | . . . . . . . . . . . . . . Robots Disrupted . | . . . . . . . . . . . . . . Combat Hostiles . | . . . . . . . . . . . . . . Robots Corrupted . | . . . . . . . . . . . . . . Combat Hostiles . | . . . . . . . . . . . . . . Parts Fried 2 | . . . . . . . . . . 2 . . . Impact Corruptions . | . . . . . . . . . . . . . . Robots Melted . | . . . . . . . . . . . . . . Combat Hostiles . | . . . . . . . . . . . . . . Parts Melted 1 | . . . . . . . . . . 1 . . . Heat Transferred 858 | . . 658 . . . . . . 200 . . . . Parts Sabotaged 2 | . . . . . . . . . . . . . 2 Parts Stolen 1 | . . . . . . 1 . . . . . . . Parts Stripped . | . . . . . . . . . . . . . . Power Chain Reactions . | . . . . . . . . . . . . . . Alert | -11 -10 -10 -9 -6 -6 -6 -6 -5 -5 -5 -5 -4 -4 ------- Run | Yrd Mat Sub Scr Fac Low Low Dat Pro Fac Ext Cet Fac Arm Maximum Alert Level 5 | . . . . . . . . . 3 3 2 5 4 Low Security (%) 36 | 100 100 . . 100 . . . . 37 2 . . . Level 1 21 | . . . . . . . . . 18 30 76 39 . Level 2 26 | . . . . . . . . . 30 64 23 6 . Level 3 12 | . . . . . . . . . 14 2 . 25 94 Level 4 1 | . . . . . . . . . . . . 11 5 Level 5 . | . . . . . . . . . . . . 6 . High Security . | . . . . . . . . . . . . 11 . Max Security . | . . . . . . . . . . . . . . Peak Influence 1846 | 5 12 . . 95 . . . . 1086 730 426 1846 1100 Initial 1100 | . . . . . . . . . 120 512 408 226 1100 Average 403 | . 1 . . 37 . . . . 418 454 360 847 1046 Influence Increases 8149 | 20 12 50 . 620 388 347 . 653 2042 1290 332 2166 229 Destroy 0b10 Robot/C 3740 | . . 40 . 300 260 240 . 440 900 620 120 780 40 Destroy 0b10 Robot/NC 315 | 20 . . . 40 . 5 . 10 95 50 10 85 . Destroy Leader 536 | . . 10 . 72 30 20 . 20 178 76 . 120 10 Allied During Kill 2116 | . . . . 62 83 82 . 183 218 470 130 888 . Successful Hack 160 | . 12 . . 39 . . . . 66 13 16 14 . Select Force Hacks 20 | . . . . 20 . . . . . . . . . Disable Machine 285 | . . . . 15 . . . . 180 15 . 60 15 Destroy Structure 632 | . . . . 12 . . . . 300 46 56 204 14 Lose Combat Pursuer 345 | . . . . 60 15 . . . 105 . . 15 150 Influence Decreases 7319 | 20 12 50 . 557 348 450 . 461 1188 1606 656 814 1157 Entered New Map 2050 | . . . . . 24 21 . . 72 534 322 180 897 Time Decay 3408 | 20 12 50 . 426 294 339 . 421 686 522 214 254 170 Lost Part 420 | . . . . 50 10 30 . 20 70 10 20 120 90 Lost Ally 1141 | . . . . 81 20 60 . 20 360 240 100 260 . Purge Threat 300 | . . . . . . . . . . 300 . . . Squads Dispatched 40 | . 2 . . 4 . . . . 18 3 . 8 5 Investigation 9 | . 1 . . 1 . . . . 6 . . 1 . Extermination 9 | . . . . 2 . . . . 5 . . 2 . Reinforcement 15 | . 1 . . 1 . . . . 4 2 . 4 3 Assault 6 | . . . . . . . . . 3 1 . . 2 Garrison 1 | . . . . . . . . . . . . 1 . Intercept . | . . . . . . . . . . . . . . Searches Triggered . | . . . . . . . . . . . . . . Data Miner Redirects 2 | . . . . . . . . . 1 . . . 1 Construction Impeded 3 | . . . . . . . . . 1 1 . 1 . Haulers Reinforced 2 | . . . . . . . . . 1 . . 1 . Active Scanning Responses . | . . . . . . . . . . . . . . Cargo Convoy Interrupts . | . . . . . . . . . . . . . . Stealth | -11 -10 -10 -9 -6 -6 -6 -6 -5 -5 -5 -5 -4 -4 --------- Run | Yrd Mat Sub Scr Fac Low Low Dat Pro Fac Ext Cet Fac Arm Distress Signals 12 | . . . . 1 . . . . 1 3 2 4 1 Communications Jammed . | . . . . . . . . . . . . . . Distress Signals . | . . . . . . . . . . . . . . Times Spotted 291 | . 6 10 . 38 13 12 . 23 65 39 10 46 29 Peak Tracking Total 15 | . 5 4 . 5 4 5 . 4 6 5 5 12 15 Tactical Retreats 12 | . . . . 2 1 . . . 3 . . 1 5 Traps | -11 -10 -10 -9 -6 -6 -6 -6 -5 -5 -5 -5 -4 -4 ------- Run | Yrd Mat Sub Scr Fac Low Low Dat Pro Fac Ext Cet Fac Arm Traps Triggered 8 | . . . . . . . . . 5 . . 1 2 Indirectly . | . . . . . . . . . . . . . . Trap Hack Attempts . | . . . . . . . . . . . . . . Triggered . | . . . . . . . . . . . . . . Disarmed . | . . . . . . . . . . . . . . Reprogrammed . | . . . . . . . . . . . . . . Reused . | . . . . . . . . . . . . . . Traps Extracted . | . . . . . . . . . . . . . . Installed . | . . . . . . . . . . . . . . Triggered . | . . . . . . . . . . . . . . Machines | -11 -10 -10 -9 -6 -6 -6 -6 -5 -5 -5 -5 -4 -4 ---------- Run | Yrd Mat Sub Scr Fac Low Low Dat Pro Fac Ext Cet Fac Arm Machines Disabled 20 | . . . . 1 . . . 1 12 1 . 4 1 Max in Single Turn 4 | . . . . . . . . 1 4 1 . . 1 Machines Repaired . | . . . . . . . . . . . . . . Machines Dismantled . | . . . . . . . . . . . . . . Machines Sabotaged . | . . . . . . . . . . . . . . Overloaded Fab Kills . | . . . . . . . . . . . . . . Hacking | -11 -10 -10 -9 -6 -6 -6 -6 -5 -5 -5 -5 -4 -4 --------- Run | Yrd Mat Sub Scr Fac Low Low Dat Pro Fac Ext Cet Fac Arm Machines Accessed 47 | . 2 1 4 6 1 1 4 . 14 6 3 3 2 Terminals 22 | . 2 . . 4 . . . . 4 6 3 2 1 Fabricators 2 | . . . . 1 . . . . . . . . 1 Repair Stations 3 | . . . . . . . . . 3 . . . . Recycling Units 7 | . . . . . . . . . 6 . . 1 . Scanalyzers 2 | . . . . 1 . . . . 1 . . . . Garrison Access . | . . . . . . . . . . . . . . Total Hacks 138 | . 5 1 21 17 1 1 30 . 25 15 12 8 2 Successful 93 | . 3 1 21 8 1 1 30 . 11 9 5 3 . Failed 45 | . 2 . . 9 . . . . 14 6 7 5 2 Catastrophic 11 | . . . . . . . . . 4 . 2 3 2 Database Lockouts . | . . . . . . . . . . . . . . Manual 47 | . 5 . . 10 . . . . 17 7 1 5 2 Terminals 59 | . 5 . . 12 . . . . 8 15 12 6 1 Fabricators 2 | . . . . 1 . . . . . . . . 1 Repair Stations 5 | . . . . . . . . . 5 . . . . Recycling Units 12 | . . . . . . . . . 10 . . 2 . Scanalyzers 6 | . . . . 4 . . . . 2 . . . . Garrison Access . | . . . . . . . . . . . . . . Terminal Hacks 68 | . . 1 21 1 1 1 30 . 1 7 5 . . Record 36 | . . . 21 . . . 11 . . . 4 . . Part Schematic 9 | . . . . . . . 9 . . . . . . Robot Schematic 7 | . . . . . . . 7 . . . . . . Robot Analysis 1 | . . . . . . . . . . 1 . . . Prototype ID Bank 4 | . . . . 1 . . 3 . . . . . . Open Door 4 | . . . . . 1 1 . . 1 . 1 . . Terminal Index 1 | . . . . . . . . . . 1 . . . Alert Level 2 | . . . . . . . . . . 2 . . . Unreport Threat 2 | . . . . . . . . . . 2 . . . Locate Traps 1 | . . . . . . . . . . 1 . . . Proto ID Catalog 1 | . . 1 . . . . . . . . . . . Fabricator Hacks . | . . . . . . . . . . . . . . Repair Station Hacks 2 | . . . . . . . . . 2 . . . . Scan Component 1 | . . . . . . . . . 1 . . . . Repair 1 | . . . . . . . . . 1 . . . . Recycling Unit Hacks . | . . . . . . . . . . . . . . Scanalyzer . | . . . . . . . . . . . . . . Garrison Access Hacks . | . . . . . . . . . . . . . . Unauthorized Hacks 23 | . 3 . . 7 . . . . 8 2 . 3 . Terminals 16 | . 3 . . 6 . . . . 3 2 . 2 . Botnet 6 | . 1 . . 3 . . . . . 1 . 1 . Skim 10 | . 2 . . 3 . . . . 3 1 . 1 . Fabricators 1 | . . . . 1 . . . . . . . . . Download 1 | . . . . 1 . . . . . . . . . Repair Stations . | . . . . . . . . . . . . . . Recycling Units 6 | . . . . . . . . . 5 . . 1 . Fedlink 6 | . . . . . . . . . 5 . . 1 . Scanalyzers . | . . . . . . . . . . . . . . Garrison Access . | . . . . . . . . . . . . . . Data Cores Recovered . | . . . . . . . . . . . . . . Used . | . . . . . . . . . . . . . . Hacking Detections 27 | . 1 . . 5 . . . . 9 5 3 2 2 Full Trace Events . | . . . . . . . . . . . . . . Feedback Events . | . . . . . . . . . . . . . . Feedback Blocked . | . . . . . . . . . . . . . . Robot Schematics Acquired 8 | . . . . 1 . . 7 . . . . . . Robots Built . | . . . . . . . . . . . . . . Authchips . | . . . . . . . . . . . . . . Time . | . . . . . . . . . . . . . . Total Robot Build Rating . | . . . . . . . . . . . . . . Part Schematics Acquired 9 | . . . . . . . 9 . . . . . . Parts Built . | . . . . . . . . . . . . . . Authchips . | . . . . . . . . . . . . . . Time . | . . . . . . . . . . . . . . Total Part Build Rating . | . . . . . . . . . . . . . . Part Studies Acquired . | . . . . . . . . . . . . . . Parts Repaired 1 | . . . . . . . . . 1 . . . . Time 32 | . . . . . . . . . 32 . . . . Parts Recycled . | . . . . . . . . . . . . . . Recycled Matter . | . . . . . . . . . . . . . . Retrieved Matter . | . . . . . . . . . . . . . . Retrieved Components . | . . . . . . . . . . . . . . Parts Scanalyzed . | . . . . . . . . . . . . . . Part Schematics Acquired . | . . . . . . . . . . . . . . Parts Damaged . | . . . . . . . . . . . . . . Bothacking | -11 -10 -10 -9 -6 -6 -6 -6 -5 -5 -5 -5 -4 -4 ------------ Run | Yrd Mat Sub Scr Fac Low Low Dat Pro Fac Ext Cet Fac Arm Used RIF Installer . | . . . . . . . . . . . . . . Robots Hacked . | . . . . . . . . . . . . . . Non-combat . | . . . . . . . . . . . . . . Combat . | . . . . . . . . . . . . . . Robot Hacks Applied . | . . . . . . . . . . . . . . Relay Couplers Released . | . . . . . . . . . . . . . . Fabnet Peak Effective % . | . . . . . . . . . . . . . . Robots Rewired 12 | . . . . . . . . . . 12 . . . Allies Hacked 5 | . . . . 1 . 2 . . 1 . . 1 . Hacks Repelled . | . . . . . . . . . . . . . . Allies | -11 -10 -10 -9 -6 -6 -6 -6 -5 -5 -5 -5 -4 -4 -------- Run | Yrd Mat Sub Scr Fac Low Low Dat Pro Fac Ext Cet Fac Arm Total Allies 24 | . . . . . . . . . . 19 5 . . Largest Group 14 | . . . . . . . . . . 14 10 9 . Highest-Rated Group 727 | . . . . . . . . . . 522 727 698 . Highest-Rated Ally 159 | . . . . . . . . . . 159 159 151 . Initial UFD Resources 57 | . . . . 23 23 23 23 25 25 45 45 47 57 Total Orders 28 | . . . . 4 4 3 . 2 8 4 2 1 . STAY 7 | . . . . 2 . 1 . . 3 1 . . . ROAM 3 | . . . . . 1 . . . 1 . 1 . . FOLLOW 13 | . . . . 2 1 1 . 1 4 2 1 1 . AID 5 | . . . . . 2 1 . 1 . 1 . . . Ally Attacks 1087 | . . . . 111 70 112 . 94 249 177 80 194 . Total Damage 30664 | . . . . 2656 2440 2667 . 2321 6676 4754 2897 6253 . Kills 206 | . . . . 15 17 15 . 24 48 34 8 45 . Allies Corrupted 2 | . . . . . . . . . . . . 2 . Allies Melted 6 | . . . . . 1 2 . . 3 . . . . Borg Created 49 | . . . . 12 4 3 . 2 19 5 2 2 . Largest Collective 6 | . . . . 3 5 5 . 5 4 5 6 5 . Intel | -11 -10 -10 -9 -6 -6 -6 -6 -5 -5 -5 -5 -4 -4 ------- Run | Yrd Mat Sub Scr Fac Low Low Dat Pro Fac Ext Cet Fac Arm Active Infowar (turns) 3138 | 36 182 42 . 1088 . . . . 1302 . . 488 . Terrain 1302 | . . . . . . . . . 1302 . . . . Seismic 260 | 36 182 42 . . . . . . . . . . . Decoding 1088 | . . . . 1088 . . . . . . . . . Cloaking 488 | . . . . . . . . . . . . 488 . Robot Analysis Total 1 | . . . . . . . . . . 1 . . . Derelict Logs Recovered 13 | . . 2 4 . 2 3 . 2 . . . . . Drone Launches . | . . . . . . . . . . . . . . Drone Recoveries . | . . . . . . . . . . . . . . Decoded 0b10 Intel 33 | . . . . 33 . . . . . . . . . Traps 4 | . . . . 4 . . . . . . . . . Emergency Access 3 | . . . . 3 . . . . . . . . . Items 20 | . . . . 20 . . . . . . . . . Machines 5 | . . . . 5 . . . . . . . . . Guards 1 | . . . . 1 . . . . . . . . . Exploration | -11 -10 -10 -9 -6 -6 -6 -6 -5 -5 -5 -5 -4 -4 ------------- Run | Yrd Mat Sub Scr Fac Low Low Dat Pro Fac Ext Cet Fac Arm Turns Passed 15482 | 147 182 761 2279 1264 1489 1831 273 1641 2754 1448 448 616 349 Spaces Moved 9822 | 59 169 412 1603 727 843 1110 116 964 1889 897 272 453 308 Core 223 | 3 . . . . . . . . . . . . 220 Treads 401 | 56 1 319 . . . . . . . . . . 25 Legs 867 | . . . 689 176 . . . . . . . . 2 Wheels 8331 | . 168 93 914 551 843 1110 116 964 1889 897 272 453 61 Hover . | . . . . . . . . . . . . . . Flight . | . . . . . . . . . . . . . . Fastest Speed 50 | 50 95 95 110 123 131 140 140 140 115 115 117 96 50 Average Speed 136 | 154 95 147 141 151 156 157 140 162 120 115 129 105 70 Slowest Speed 275 | 160 160 160 190 260 165 275 140 230 230 117 131 120 250 Overloaded Moves . | . . . . . . . . . . . . . . Propulsion Burnouts . | . . . . . . . . . . . . . . Robots Hopped . | . . . . . . . . . . . . . . Potential Cave-ins . | . . . . . . . . . . . . . . Cave-ins Triggered . | . . . . . . . . . . . . . . Exploration Rate (%) 58 | 4 41 24 91 22 96 97 77 98 50 98 83 19 25 Regions Visited 13 Branch Regions 9 Pre-discovered Areas 8 | . . 1 3 . . 2 1 1 . . . . . Known Exits Taken 2 | . . . . . 1 . . 1 . . . . . Unknown Exits Taken 11 | 1 1 1 1 1 . 1 1 . 1 1 1 1 . Scrap Searched 10 | . . . 2 . 4 3 . 1 . . . . . Spaces Dug 36 | . . . . 10 . . 1 1 9 2 1 5 7 Terrain Destroyed 99 | . . 1 . 10 . . 1 1 47 24 1 7 7 Melee 34 | . . . . 10 . . 1 1 9 . 1 5 7 Projectile 1 | . . 1 . . . . . . . . . . . AOE 64 | . . . . . . . . . 38 24 . 2 . Terrain Rammed 5 | . . . . . . . . . . . . . 5 Walls Destroyed . | . . . . . . . . . . . . . . Machines Disabled . | . . . . . . . . . . . . . . Actions | -11 -10 -10 -9 -6 -6 -6 -6 -5 -5 -5 -5 -4 -4 --------- Run | Yrd Mat Sub Scr Fac Low Low Dat Pro Fac Ext Cet Fac Arm Total 11424 | 87 184 503 1617 826 1003 1173 225 1020 2259 1252 357 531 387 Wait 933 | 2 5 31 . 22 137 31 109 43 234 220 77 20 2 Move 9809 | 58 168 411 1602 726 842 1109 115 963 1888 896 271 452 308 Hop . | . . . . . . . . . . . . . . Pick Up 69 | 5 4 4 6 14 7 5 . 2 14 3 . 4 1 Fast Attach 52 | 7 . 5 . 5 4 2 . 1 15 1 . 5 7 Attach 42 | . . 2 2 9 . 5 . 1 7 1 2 8 5 Detach 13 | . . . . 6 . . . . 3 . . 2 2 Swap 40 | . 3 7 2 3 . 4 . 1 9 7 2 2 . Drop 58 | . 1 11 5 4 6 4 . . 17 6 . 1 3 Fire 61 | 11 2 32 . . . . . . 10 5 . 1 . Melee 168 | . . . . 25 2 6 1 7 41 25 2 28 31 Ram 7 | . . . . . . . . . . . . . 7 Kick . | . . . . . . . . . . . . . . Crush 8 | 4 1 . . . . . . . . . . 3 . Escape Stasis 21 | . . . . . . . . . . . . . 21 Rewire 85 | . . . . . . . . . 1 82 . 2 . Trap . | . . . . . . . . . . . . . . Miscellaneous 58 | . . . . 12 5 7 . 2 20 6 3 3 . Route ------- -11/Scrapyard -10/Materials (discovered 3 exits: [*Mat] / [*Min] / *Sub) -10/Subcaves (discovered 3 exits: Mat / *Scr x2) -9/Scraptown (discovered 2 exits: *Fac x2) -6/Factory (discovered 2 exits: *Fac / *Low) -6/Lower Caves -6/Lower Caves (discovered 2 exits: *Fac / *Dat) -6/Data Miner -5/Proximity Caves -5/Factory (discovered 3 exits: *Fac / [*Upp] / *Ext) -5/Extension (discovered 2 exits: *Fac / *Cet) -5/Cetus (discovered 2 exits: *Fac / [*Arc]) -4/Factory -4/Armory History --------- Turn | Location | Event 62 | -11/Scrapyard | Discovered new exit (range 15) 148 | -11/Scrapyard | Entered Materials 149 | -10/Materials | Met a group of wandering Federalists 208 | -10/Materials | Discovered new exit (range 14) 238 | -10/Materials | Discovered new exit (range 15) 277 | -10/Materials | Discovered new exit (range 4) 309 | -10/Materials | Build established: Mutant 330 | -10/Materials | Entered Subcaves 331 | -10/Subcaves | Continued accompanying wandering Federalists (4) 331 | -10/Subcaves | Approached by a straggling Scientist 364 | -10/Subcaves | Identified exit to Materials 550 | -10/Subcaves | Ambushed by Subdwellers from Twisted Machinery 554 | -10/Subcaves | Wandering Federalist uncovered a shortcut to Scraptown 693 | -10/Subcaves | Shifting Twisted Machinery released Shrapnel Trap 694 | -10/Subcaves | Shifting Twisted Machinery released Battle Cannon 719 | -10/Subcaves | Scientist uncovered a shortcut to Scraptown 854 | -10/Subcaves | Learned location of Zion (-7) 940 | -10/Subcaves | Visited 4L-MR0's lab 950 | -10/Subcaves | Found Prototype Special Melee Weapon 1091 | -10/Subcaves | Entered Scraptown 1189 | -9/Scraptown | Visited TADAMA 1225 | -9/Scraptown | Visited Cyclists 1278 | -9/Scraptown | Visited UFD Registry 1278 | -9/Scraptown | Registered with UFD as "Pyrodrive" 1312 | -9/Scraptown | Build established: Scavenger-Mutant 1473 | -9/Scraptown | Scanned Subdweller tech in exchange for log data 1475 | -9/Scraptown | Learned location of 2 exits from Upper Caves 1476 | -9/Scraptown | Learned Research emergency access door positions 1478 | -9/Scraptown | Learned location of 1 exit from Research 1479 | -9/Scraptown | Learned location of Quarantine (-2) 1490 | -9/Scraptown | Discovered new exit (range 13) 1884 | -9/Scraptown | Visited Cave Peace 1926 | -9/Scraptown | Visited Red Mages 2004 | -9/Scraptown | Entered Cyclist Reading Room 2010 | -9/Scraptown | Learned location of Exiles (-9) 2043 | -9/Scraptown | Visited Fellowship of the Rings 2053 | -9/Scraptown | Visited IN-MT5's Study 2067 | -9/Scraptown | Visited Spacefarers 2166 | -9/Scraptown | Visited Infowarlord's Domain 2211 | -9/Scraptown | Visited Junk Repository 2267 | -9/Scraptown | Visited Scrap Suit Storage 2465 | -9/Scraptown | Build established: Mutant 2578 | -9/Scraptown | Visited Scrapoid Pod Storage 2607 | -9/Scraptown | Visited Observation Area 2671 | -9/Scraptown | Visited Scrapoid Research Area 2724 | -9/Scraptown | Visited Botcube Research 2759 | -9/Scraptown | Visited LU-1G1's Boring Crew 2954 | -9/Scraptown | Visited Abandonware Association 2973 | -9/Scraptown | Learned abandonware demo "REPAIR.EXE" 2973 | -9/Scraptown | Learned abandonware demo "MELTYB.EXE" 3365 | -9/Scraptown | Discovered new exit (range 3) 3370 | -9/Scraptown | Entered Factory 3370 | -6/Factory | Evolved 8 slots: Propulsion x1, Utility x3, Weapon x4 3386 | -6/Factory | Identified 1B-0RG's Assimilator 3387 | -6/Factory | Assimilating Virus 5a into Collective. 3395 | -6/Factory | Assimilating Virus 5b into Collective. 3492 | -6/Factory | Assimilating Administrator 5a into Collective. 3810 | -6/Factory | Assimilating Hacker 5a into Collective. 3865 | -6/Factory | Assimilating Informer 5a into Collective. 3914 | -6/Factory | Assimilating Virus 5c into Collective. 3919 | -6/Factory | Assimilating Virus 5d into Collective. 3924 | -6/Factory | Assimilating Virus 5e into Collective. 3929 | -6/Factory | Lost 3 allies 3968 | -6/Factory | Discovered new exit (range 9) 3977 | -6/Factory | Lost 3 parts (1p2u) 3977 | -6/Factory | Lost 3 allies 4018 | -6/Factory | Assimilating Guardian 5a into Collective. 4073 | -6/Factory | Assimilating Soldier 5a into Collective. 4095 | -6/Factory | Assimilating Soldier 5b into Collective. 4533 | -6/Factory | Assimilating Hacker 5b into Collective. 4609 | -6/Factory | Discovered new exit (range 6) 4634 | -6/Factory | Entered Lower Caves 4634 | -6/Lower Caves | Accompanied by 3 allies 4636 | -6/Lower Caves | Assimilating Soldier 5c into Collective. 4738 | -6/Lower Caves | Spotted B-75 Beast 4760 | -6/Lower Caves | Assimilating Beast 5a into Collective. 4779 | -6/Lower Caves | Identified exit to Lower Caves 4919 | -6/Lower Caves | Encountered a Warlord checkpoint 5399 | -6/Lower Caves | Learned 4 Factory zone layouts 5519 | -6/Lower Caves | Assimilating Hacker 5c into Collective. 5723 | -6/Lower Caves | Assimilating Virus 5f into Collective. 6123 | -6/Lower Caves | Entered another Lower Caves area 6123 | -6/Lower Caves | Accompanied by 5 allies 6156 | -6/Lower Caves | Learned Factory emergency access door positions 6283 | -6/Lower Caves | Ambushed by research squad 6295 | -6/Lower Caves | Assimilating Hacker 5d into Collective. 6461 | -6/Lower Caves | Discovered new exit (range 5) 6825 | -6/Lower Caves | Encountered a Warlord checkpoint 6958 | -6/Lower Caves | Lost 3 allies 6997 | -6/Lower Caves | Spotted B-75 Beast 7044 | -6/Lower Caves | Allies destroyed B-75 Beast 7474 | -6/Lower Caves | Assimilating M0-JED(f) into Collective. 7478 | -6/Lower Caves | Assimilating 3F-ACG(f) into Collective. 7876 | -6/Lower Caves | Discovered new exit (range 10) 7929 | -6/Lower Caves | Build established: Scavenger-Mutant 7954 | -6/Lower Caves | Entered Data Miner 7954 | -6/Data Miner | Accompanied by 4 allies 7954 | -6/Data Miner | Discovered new exit (range 6) 7981 | -6/Data Miner | Met Data Miner 8022 | -6/Data Miner | Learned location of Section 7 (-2) 8022 | -6/Data Miner | Acquired the access code to Warlord's prototype stash 8047 | -6/Data Miner | Received God Mode back door access code from Data Miner 8227 | -6/Data Miner | Entered Proximity Caves 8227 | -5/Proximity Caves | Accompanied by 4 allies 8891 | -5/Proximity Caves | Assimilating Veteran 6a into Collective. 9056 | -5/Proximity Caves | Learned location of Armory (-4) 9354 | -5/Proximity Caves | Attracted the attention of an 0b10 base 9372 | -5/Proximity Caves | Identified exit to Factory 9554 | -5/Proximity Caves | Assimilating Veteran 6b into Collective. 9868 | -5/Proximity Caves | Build established: Mutant 9868 | -5/Proximity Caves | Entered Factory 9868 | -5/Factory | Accompanied by 5 allies 9868 | -5/Factory | Evolved 2 slots: Propulsion x1, Utility x1 10008 | -5/Factory | Discovered new exit (range 15) 10158 | -5/Factory | Loaded intel: 8 recycling unit locations 10242 | -5/Factory | Assimilating Sentinel 6a into Collective. 10269 | -5/Factory | Assimilating Sentinel 6b into Collective. 10478 | -5/Factory | Assimilating Soldier 6a into Collective. 10512 | -5/Factory | Assimilating Soldier 6b into Collective. 10544 | -5/Factory | Assimilating Sage 6a into Collective. 10629 | -5/Factory | Discovered new exit (range 15) 10691 | -5/Factory | Discovered new exit (range 4) 10738 | -5/Factory | Assimilating Soldier 6c into Collective. 10884 | -5/Factory | Assimilating Slayer 6a into Collective. 10887 | -5/Factory | Assimilating Slayer 6b into Collective. 10898 | -5/Factory | Lost 3 allies 10978 | -5/Factory | Assimilating Sentinel 6c into Collective. 11128 | -5/Factory | Build established: Scavenger-Mutant 11204 | -5/Factory | Spotted B-75 Beast 11221 | -5/Factory | Assimilating Beast 6a into Collective. 11320 | -5/Factory | Assimilating Warrior 6a into Collective. 11335 | -5/Factory | Assimilating Soldier 6d into Collective. 11388 | -5/Factory | Lost 5 allies 11400 | -5/Factory | Assimilating Sage 6b into Collective. 11486 | -5/Factory | Assimilating Administrator 6a into Collective. 11759 | -5/Factory | Repaired Arm. Wheel 11850 | -5/Factory | Assimilating Sage 6c into Collective. 11854 | -5/Factory | Assimilating Sage 6d into Collective. 12017 | -5/Factory | Assimilating Veteran 6c into Collective. 12164 | -5/Factory | Found Unknown Protection 12164 | -5/Factory | Identified Hvy. Reflective Plating 12268 | -5/Factory | First assault squad dispatched 12461 | -5/Factory | Assimilating Sage 6e into Collective. 12464 | -5/Factory | Assimilating Sage 6f into Collective. 12598 | -5/Factory | Incoming assault squad redirected 12622 | -5/Factory | Entered Extension 12622 | -5/Extension | Accompanied by 3 allies 12785 | -5/Extension | Rescued a captive Derelict 12786 | -5/Extension | Rescued a captive Derelict 12866 | -5/Extension | Assimilating Slayer 6c into Collective. 13222 | -5/Extension | First assault squad dispatched 13371 | -5/Extension | Assimilating Veteran 6d into Collective. 13374 | -5/Extension | Assimilating Slayer 6d into Collective. 13400 | -5/Extension | Lost 6 allies 13439 | -5/Extension | Spotted B-75 Beast 13447 | -5/Extension | Spotted B-75 Beast 13456 | -5/Extension | Assimilating Beast 6b into Collective. 13467 | -5/Extension | Assimilating Beast 6c into Collective. 13548 | -5/Extension | Rescued A7 13586 | -5/Extension | Rescued a captive Derelict 13587 | -5/Extension | Rescued a captive Derelict 13698 | -5/Extension | Rescued a captive Derelict 13699 | -5/Extension | Rescued a captive Derelict 13900 | -5/Extension | Discovered new exit (range 10) 13902 | -5/Extension | Discovered new exit (range 6) 14025 | -5/Extension | Disrupted transfer network 14027 | -5/Extension | Build established: Commander-Mutant 14062 | -5/Extension | Lost 5 allies 14070 | -5/Extension | Entered Cetus 14070 | -5/Cetus | Accompanied by 13 allies (A7) 14075 | -5/Cetus | Acquired a Cetus Manufacturing Module code from A7 14083 | -5/Cetus | Spotted Cetus Guard 14084 | -5/Cetus | Spotted Cetus Guard 14086 | -5/Cetus | Spotted Cetus Guard 14086 | -5/Cetus | Spotted Cetus Guard 14102 | -5/Cetus | Assimilating Cetus Guard into Collective. 14103 | -5/Cetus | Core integrity fell below 50% 14110 | -5/Cetus | Allies destroyed Cetus Guard 14119 | -5/Cetus | Allies destroyed Cetus Guard 14124 | -5/Cetus | Assimilating Cetus Guard into Collective. 14127 | -5/Cetus | Allies destroyed Borg Cetus Guard 14158 | -5/Cetus | Lost 5 allies 14221 | -5/Cetus | Escorted A7 to Cetus Mainframe 14243 | -5/Cetus | Started Cetus Manufacturing Module 14268 | -5/Cetus | Manufactured an Enhanced Grunt 14293 | -5/Cetus | Manufactured an Enhanced Grunt 14318 | -5/Cetus | Manufactured an Enhanced Grunt 14327 | -5/Cetus | Discovered new exit (range 15) 14343 | -5/Cetus | Manufactured an Enhanced Grunt 14368 | -5/Cetus | Manufactured an Enhanced Grunt 14393 | -5/Cetus | Spotted Cetus Guard 14393 | -5/Cetus | Spotted Cetus Guard 14396 | -5/Cetus | Spotted Cetus Guard 14398 | -5/Cetus | Spotted Cetus Guard 14412 | -5/Cetus | Discovered new exit (range 16) 14417 | -5/Cetus | Allies destroyed Cetus Guard 14422 | -5/Cetus | Allies destroyed Cetus Guard 14423 | -5/Cetus | Allies destroyed Cetus Guard 14429 | -5/Cetus | Allies destroyed Cetus Guard 14432 | -5/Cetus | Met Revision 17 14518 | -5/Cetus | Entered Factory 14518 | -4/Factory | Accompanied by 14 allies (A7) 14518 | -4/Factory | Evolved 2 slots: Propulsion x1, Utility x1 14523 | -4/Factory | Received a hacking code to weaken MAIN.C 14722 | -4/Factory | Loaded intel: 8 recycling unit locations 14816 | -4/Factory | Lost 4 allies 14828 | -4/Factory | Build established: Scavenger-Mutant 15005 | -4/Factory | Assimilating Veteran 7a into Collective. 15016 | -4/Factory | Lost 5 parts (1p1n3u) 15018 | -4/Factory | Lost 3 allies 15065 | -4/Factory | High security lockdown imminent 15074 | -4/Factory | Assimilating Sage 7a into Collective. 15099 | -4/Factory | Garrison activated, responded to threat 15110 | -4/Factory | Discovered new exit (range 11) 15118 | -4/Factory | Lost 4 allies 15134 | -4/Factory | Entered Armory 15163 | -4/Armory | Lost 7 parts (2n3u2w) 15265 | -4/Armory | Lost 6 parts (5n1u) 15334 | -4/Armory | Released all parts (6) 15356 | -4/Armory | Found Prototype Launcher 15356 | -4/Armory | Identified Com. Tesla Bomb Launcher 15379 | -4/Armory | Core integrity fell below 50% 15384 | -4/Armory | First assault squad dispatched 15403 | -4/Armory | Incoming assault squad redirected 15456 | -4/Armory | Core integrity fell below 20% 15483 | -4/Armory | Core destroyed Last Messages --------------- 15464_ O-24 Administrator: "IFF HANDSHAKE FAILED. SECURING TERMINAL." 15466_ O-24 Administrator uses terminal to summon reinforcements. 15466_ ALERT: Hostiles spotted, dispatching reinforcements to Terminal A006. 15466_ O-24 Administrator locks terminal. 15466_ Terminal unresponsive. 15467_ Slammed into O-24 Administrator. 15468_ G>6T EKAIBDVJKL//BYJY&&KV0Z5G8B>5IRKV8E 15469_ Slammed into O-24 Administrator. 15476_ Slammed into Terminal. 15476_ Destabilizing: System corrupted (+1). 15480_ Slammed into Wall. 15481_ Destabilizing: Core damaged (-23). 15482_ Slammed into Wall. 15482_ Destabilizing: System corrupted (+2). 15483_ Slammed into Wall. 15483_ Destabilizing: Core damaged (-46). Map ----- +----------------------------------------------------+ | | | | | | | | | | | | | | | | | ?????????????????????????????????????????????????? | | ?????????????????????????????????????????????????? | | ?????????????????????????????????????????????????? | | ?????????????????????????????????????????????????? | | ?????????????????????????????????????????????????? | | ?????????????????????????????????????????????????? | | ?????????????????????????????????????????????????? | | ?????????????????????????????????????????????????? | | ?????????????????????????????????????????????????? | | ????????????????????????????????????????????????## | | ????????????????????????????????????????????????# | | ????????????????????????????????????????????????# | | ????????????????????????????????????????????????# | | ????????????????????????###########?????????????# | | ????????????????????????# """T""" #?????????????# | | ????????????????????????# %x x #?????????????# | | ????????????????????????#%""""""" #######+######## | | ????????????????????????#@""""""" # # ??? | | ????????????????????????# """"""" # #! "??? | | ????????????????????????# # ### # ???? | | ????????????????????????# / # #?# # ???? | | ????????????????????????# / #?# ##+##### | | ????????????????????????########### #?# | | ??????????????????????????????????# #?# | | ??????????????????????????????????[ ## ######## | | ?????????????????????????????????? ## #????? | | ????????????????????????????????? ## #??? | | ?????????????????????????????????# # ? | | ?????????????????????????????????## ### T # | | ??????????????????????????????????# ??# "" # """T" | | ??????????????????????????????????# ??# ####### | | ??????????????????????????????????#+??## #??????? | | ???????????????????????????????????????# ???????? | | ???????????????????????????????????????+ ????????? | | ???????????????????????????????????????? ????????? | | ?????????????????????????????????????????????????? | | ?????????????????????????????????????????????????? | | ?????????????????????????????????????????????????? | | ?????????????????????????????????????????????????? | | ?????????????????????????????????????????????????? | | ?????????????????????????????????????????????????? | | ?????????????????????????????????????????????????? | +----------------------------------------------------+ Best States ------------- Heat Dissipation 74 Energy Generation 21 Energy Capacity 315 Matter Stores 450 Matter Capacity 450 Sight Range 16 Terrain Scan Range 20 Terrain Scan Density 10 Cloak Strength 2 Armor Coverage 825 Resistance: KI 30 Resistance: TH 25 Resistance: EM 20 Power Shielding 66 Propulsion Shielding 66 Weapon Shielding 66 Phase Shifting 10 Evasion (%) 55 Recoil Reduction 3 Defensive Hacking 14 Item Schematics ----------------- Combat Drone Bay | -6/Data Miner | Free Lgt. Regenerative Plating | -6/Data Miner | Free Enh. Armored Leg | -6/Data Miner | Free Prc. Matter Filter | -6/Data Miner | Free Imp. KE Penetrator | -6/Data Miner | Free Imp. Antigrav System | -6/Data Miner | Free Adv. Focal Shield | -6/Data Miner | Free Hvy. Disruptor Cannon | -6/Data Miner | Free Imp. Force Field | -6/Data Miner | Free Robot Schematics ------------------ M-28 Smith | -6/Factory | Downloaded Y-54 Guardian | -6/Data Miner | Free B-48 Gladiator | -6/Data Miner | Free R-10 Processor | -6/Data Miner | Free B-60 Warrior | -6/Data Miner | Free G-50 Soldier | -6/Data Miner | Free W-44 Eye | -6/Data Miner | Free A-15 Conveyor | -6/Data Miner | Free Fabricated ------------ Nothing Repaired ---------- Arm. Wheel | 16% | -5/Factory Studied --------- None Alien Tech Used ----------------- None Achievements -------------- Bob, First Of His Name Live, Flee, And Rebuild Main Advantage Challenges ------------ None Game ------ Seed TrackerTiamatVibroblade Manual? 0 Play Time 02:09:03 Cumulative 311.2 hours Start 2026.04.09 @ 14:32:45 End 2026.04.11 @ 20:32:28 Sessions 14 Manual Loads 0 Difficulty Rogue Special Mode None Game No. 163 Rogue 160 Adventurer 3 Explorer 0 Win Type - Total 8 Types 7/0/1/0/0/0/0/0/0/0 Lore% 78 Gallery% 70 Achievement% 49 Wizard Run 0 Options --------- Layout 1 ASCII 0 Keyboard 1 Movement Vi Keybinds 0 Fullscreen 1 Font 28/SmallcapsGlow Map View 50x43 Zoom Use 0% Tactical HUD 1 Map Filters NONE Filters NONE Steam X RUN: dd2bd62a-a7a1-4d10-8596-41ba05eef747